fUST/lending_fUST_20251024
["ID","MTS","AMOUNT","RATE_DAILY","PERIOD"]
[392207490,1761255313370,196.0,0.00016884,2]
[392207491,1761255313421,206.33422799,0.00035968,30]
[392207492,1761255313474,500.0,0.00035968,30]
[392207493,1761255313542,250.0,0.00035968,30]
[392207494,1761255313669,196.0,0.00016921,2]
[392207495,1761255313990,196.0,0.00016958,2]
[392207496,1761255314050,500.0,0.00035968,30]
[392207497,1761255314158,250.0,0.00035968,30]
[392207498,1761255314278,196.0,0.00016995,2]
[392207499,1761255314560,196.0,0.00017032,2]
[392207500,1761255315289,196.0,0.00017068,2]
[392207501,1761255315568,196.0,0.00017105,2]
[392207502,1761255315841,196.0,0.00017142,2]
[392207503,1761255316244,196.0,0.00017179,2]
[392207504,1761255316534,196.0,0.00017216,2]
[392207505,1761255316813,196.0,0.00017253,2]
[392207506,1761255317095,196.0,0.00017289,2]
[392207507,1761255317386,196.0,0.00017326,2]
[392207508,1761255317682,196.0,0.00017363,2]
[392207509,1761255317982,196.0,0.000174,2]
[392207510,1761255318269,196.0,0.00017437,2]
[392207511,1761255318557,196.0,0.00017474,2]
[392207512,1761255318856,196.0,0.00017511,2]
[392207513,1761255319135,196.0,0.00017547,2]
[392207514,1761255319549,196.0,0.00017584,2]
[392207515,1761255319836,196.0,0.00017621,2]
[392207516,1761255320122,196.0,0.00017658,2]
[392207517,1761255320400,196.0,0.00017695,2]
[392207518,1761255320675,196.0,0.00017732,2]
[392207519,1761255321165,196.0,0.00017768,2]
[392207520,1761255321441,196.0,0.00017805,2]
[392207521,1761255321825,196.0,0.00017842,2]
[392207522,1761255322006,196.0,0.00017879,2]
[392207523,1761255322301,196.0,0.00017916,2]
[392207524,1761255322589,196.0,0.00017953,2]
[392207525,1761255322867,196.0,0.00017989,2]
[392207526,1761255323149,196.0,0.00018026,2]
[392207527,1761255323436,196.0,0.00018063,2]
[392207528,1761255323720,361.75991505,0.000181,2]
[392207529,1761255335406,714.76337465,0.00021073,2]
[392207530,1761255350387,491.55512768,0.00020685,2]
[392207531,1761255351135,150.0,0.00019411,2]
[392207532,1761255351523,150.0,0.00020336,2]
[392207533,1761255353952,150.0,0.00014602,30]
[392207535,1761255401274,1467.93158262,0.00020973,2]
[392207536,1761255401337,10000.01,0.00020973,2]
[392207537,1761255401397,10000.01,0.00020973,2]
[392207538,1761255401457,10000.01,0.00020973,2]
[392207539,1761255401515,10000.01,0.00020973,2]
[392207540,1761255401574,10000.01,0.00020973,2]
[392207541,1761255401638,10000.01,0.00020973,2]
[392207542,1761255401701,10000.01,0.00020973,2]
[392207543,1761255401763,10000.01,0.00020973,2]
[392207544,1761255401831,10000.01,0.00020973,2]
[392207545,1761255413795,-5906.79337465,0.00020973,2]
[392207546,1761255414047,-10000.01,0.00020973,2]
[392207547,1761255414267,-10000.01,0.00020973,2]
[392207548,1761255414460,-10000.01,0.00020973,2]
[392207549,1761255414654,-10000.01,0.00020973,2]
[392207550,1761255415288,-10000.01,0.00020973,2]
[392207551,1761255415494,-10000.01,0.00020973,2]
[392207552,1761255415703,-10000.01,0.00020973,2]
[392207553,1761255415898,-10000.01,0.00020973,2]
[392207554,1761255456278,-196.0,0.00015682,2]
[392207555,1761255456303,-114.94038961,0.0001584,2]
[392207556,1761255460234,-81.05961039,0.0001584,2]
[392207557,1761255460257,-109.77794355,0.00016,2]
[392207559,1761255493337,150.0,0.00012215,30]
[392207560,1761255493742,150.0,0.00012796,30]
[392207561,1761255494179,150.0,0.00013378,30]
[392207562,1761255494673,150.0,0.00013959,30]
[392207563,1761255495000,150.0,0.00014541,30]
[392207564,1761255501064,-204.83,0.00014834,2]
[392207565,1761255501090,-155.14049997,0.00014984,2]
[392207566,1761255502697,-49.68950003,0.00014984,2]
[392207567,1761255502718,-201.59795972,0.00015135,2]
[392207570,1761255564976,150.0,0.00012369,30]
[392207571,1761255565377,150.0,0.00012958,30]
[392207572,1761255634641,150.0,0.00012242,30]
[392207573,1761255635037,150.0,0.00012825,30]
[392207574,1761255635886,-3.23204028,0.00015135,2]
[392207575,1761255635909,-211.31757432,0.00015567,2]
[392207576,1761255637145,-187.69570413,0.00015567,2]
[392207577,1761255637181,-86.22205645,0.00016,2]
[392207578,1761255637213,-470.83566857,0.00017567,2]
[392207579,1761255637245,-250.0,0.00017609,2]
[392207580,1761255637279,-380.68799575,0.000181,2]
[392207581,1761255637309,-107.3364213,0.00019436,2]
[392207582,1761255637417,-7034.4543076,0.00019436,2]
[392207583,1761255637459,-150.0,0.00019436,2]
[392207584,1761255637492,-542.65805869,0.00019567,2]
[392207585,1761255637529,-150.0,0.00020362,2]
[392207586,1761255637560,-1930.00868956,0.00020873,2]
[392207587,1761255637591,-1200.0,0.00020962,2]
[392207588,1761255637623,-500.0,0.00020971,2]
[392207589,1761255637657,-500.0,0.00020971,2]
[392207590,1761255637766,-500.0,0.00020971,2]
[392207591,1761255637796,-403.08981686,0.00020971,2]
[392207592,1761255637829,-500.0,0.00020971,2]
[392207593,1761255637861,-500.0,0.00020971,2]
[392207594,1761255637895,-500.0,0.00020971,2]
[392207595,1761255637926,-500.0,0.00020971,2]
[392207596,1761255637958,-611.60161923,0.00020971,2]
[392207597,1761255637989,-500.0,0.00020971,2]
[392207598,1761255638021,-500.0,0.00020971,2]
[392207599,1761255638053,-470.62712782,0.00020971,2]
[392207600,1761255638270,-29.37287218,0.00020971,2]
[392207601,1761255638304,-500.0,0.00020971,2]
[392207602,1761255638337,-500.0,0.00020971,2]
[392207603,1761255638369,-500.0,0.00020971,2]
[392207604,1761255638403,-500.0,0.00020971,2]
[392207605,1761255638435,-281.82425318,0.00020971,2]
[392207606,1761255638467,-500.0,0.00020971,2]
[392207607,1761255638502,-500.0,0.00020971,2]
[392207608,1761255638534,-500.0,0.00020971,2]
[392207609,1761255638566,-500.0,0.00020971,2]
[392207610,1761255638600,-500.0,0.00020971,2]
[392207611,1761255638632,-126.15540346,0.00020971,2]
[392207612,1761255638719,-125.30494236,0.00020971,2]
[392207613,1761255638753,-500.0,0.00020971,2]
[392207614,1761255638788,-500.0,0.00020971,2]
[392207615,1761255638824,-500.0,0.00020971,2]
[392207616,1761255638861,-500.0,0.00020971,2]
[392207617,1761255638898,-500.0,0.00020971,2]
[392207618,1761255638934,-500.0,0.00020971,2]
[392207619,1761255638971,-500.0,0.00020971,2]
[392207620,1761255639004,-500.0,0.00020971,2]
[392207621,1761255639039,-500.0,0.00020971,2]
[392207622,1761255639072,-235.96319874,0.00020971,2]
[392207623,1761255639318,-277.4737178,0.00020971,2]
[392207624,1761255639352,-500.0,0.00020971,2]
[392207625,1761255639385,-500.0,0.00020971,2]
[392207626,1761255639416,-500.0,0.00020971,2]
[392207627,1761255639446,-500.0,0.00020971,2]
[392207628,1761255639479,-500.0,0.00020971,2]
[392207629,1761255639512,-500.0,0.00020971,2]
[392207630,1761255639547,-500.0,0.00020971,2]
[392207631,1761255639581,-500.0,0.00020971,2]
[392207632,1761255639613,-500.0,0.00020971,2]
[392207633,1761255639744,-500.0,0.00020971,2]
[392207634,1761255639777,-500.0,0.00020971,2]
[392207635,1761255639810,-500.0,0.00020971,2]
[392207636,1761255639928,-500.0,0.00020971,2]
[392207637,1761255639969,-500.0,0.00020971,2]
[392207638,1761255640003,-500.0,0.00020971,2]
[392207639,1761255640036,-168.73396109,0.00020971,2]
[392207640,1761255640070,-460.0,0.00020971,2]
[392207641,1761255640103,-500.0,0.00020971,2]
[392207642,1761255640137,-500.0,0.00020971,2]
[392207643,1761255640169,-242.54207782,0.00020971,2]
[392207644,1761255640287,-257.45792218,0.00020971,2]
[392207645,1761255640324,-500.0,0.00020971,2]
[392207646,1761255640359,-500.0,0.00020971,2]
[392207647,1761255640389,-300.0,0.00020971,2]
[392207648,1761255640419,-300.0,0.00020971,2]
[392207649,1761255640450,-300.0,0.00020971,2]
[392207650,1761255640482,-300.0,0.00020971,2]
[392207651,1761255640512,-300.0,0.00020971,2]
[392207652,1761255640544,-500.0,0.00020972,2]
[392207653,1761255640573,-355.88388115,0.00020972,2]
[392207654,1761255640603,-500.0,0.00020972,2]
[392207655,1761255640633,-265.46560169,0.00020972,2]
[392207656,1761255642300,1242.39518996,0.00020971,2]
[392207657,1761255642325,9088.14239338,0.00020971,2]
[392207658,1761255642421,676.85,0.00020963,10]
[392207659,1761255643092,235.01760662,0.00020973,2]
[392207660,1761255643129,1340.27143063,0.00020973,2]
[392207661,1761255643662,393.0169993,0.00020541,2]
[392207662,1761255653313,689.43,0.00020963,10]
[392207663,1761255658476,5000.0,0.00020973,2]
[392207665,1761255661854,500.0,0.00020971,2]
[392207666,1761255661890,500.0,0.00020971,2]
[392207667,1761255661921,500.0,0.00020971,2]
[392207668,1761255661968,500.0,0.00020971,2]
[392207669,1761255661999,500.0,0.00020971,2]
[392207670,1761255662031,500.0,0.00020971,2]
[392207671,1761255662067,500.0,0.00020971,2]
[392207672,1761255662097,500.0,0.00020971,2]
[392207673,1761255662133,500.0,0.00020971,2]
[392207674,1761255662171,500.0,0.00020971,2]
[392207675,1761255662207,0.01,0.00020971,2]
[392207676,1761255662238,499.99,0.00020971,2]
[392207677,1761255662269,332.77645073,0.00020971,2]
[392207678,1761255662309,500.0,0.00020971,2]
[392207679,1761255662341,500.0,0.00020971,2]
[392207680,1761255662390,500.0,0.00020971,2]
[392207681,1761255662429,500.0,0.00020971,2]
[392207682,1761255662464,500.0,0.00020971,2]
[392207683,1761255662505,500.0,0.00020971,2]
[392207684,1761255662541,200.0,0.00020971,2]
[392207685,1761255662584,500.0,0.00020971,2]
[392207686,1761255662646,500.0,0.00020971,2]
[392207687,1761255662706,500.0,0.00020971,2]
[392207688,1761255662756,500.0,0.00020971,2]
[392207689,1761255662797,580.36009582,0.00020971,2]
[392207690,1761255666434,3386.88345345,0.00020973,2]
[392207691,1761255666460,1613.11654655,0.00020973,2]
[392207692,1761255681677,5000.0,0.00020973,2]
[392207693,1761255690002,1958.99700093,0.00020973,2]
[392207694,1761255692219,500.0,0.00035972,30]
[392207695,1761255694590,500.0,0.00035972,30]
[392207696,1761255696947,500.0,0.00035972,30]
[392207697,1761255699329,500.0,0.00035972,30]
[392207698,1761255702064,150.0,0.00019427,2]
[392207699,1761255705207,1277.89645252,0.00020973,2]
[392207700,1761255705234,3722.10354748,0.00020973,2]
[392207701,1761255707681,150.0,0.00020352,2]
[392207702,1761255710339,150.0,0.00014336,30]
[392207703,1761255710830,6127.90645252,0.0002077,2]
[392207704,1761255710854,80.30934058,0.0002077,2]
[392207705,1761255716376,395.21084133,0.00020873,2]
[392207706,1761255719788,223.38,0.00020963,10]
[392207707,1761255722363,300.0,0.00020972,2]
[392207708,1761255727642,1551.00286488,0.00020873,2]
[392207709,1761255728042,5000.0,0.00020973,2]
[392207710,1761255731894,186.15,0.00020963,10]
[392207711,1761255744014,155.12,0.00020963,10]
[392207712,1761255752054,2108.83695321,0.00020973,2]
[392207713,1761255752083,2891.16304679,0.00020973,2]
[392207714,1761255752132,401.2890688,0.00020972,2]
[392207715,1761255752162,250.16226065,0.00020972,2]
[392207716,1761255752197,203.64182786,0.00020972,2]
[392207717,1761255752233,474.04683493,0.00020972,2]
[392207718,1761255752265,500.0,0.00020972,2]
[392207719,1761255752312,500.0,0.00020972,2]
[392207720,1761255752371,525.41488457,0.00020972,2]
[392207721,1761255752409,554.03600958,0.00020972,2]
[392207722,1761255752450,500.0,0.00020972,2]
[392207723,1761255754371,775.63,0.00020963,10]
[392207724,1761255758409,1200.0,0.00020972,2]
[392207725,1761255762289,1224.62606682,0.0002004,2]
[392207726,1761255762313,599.19106777,0.0002004,2]
[392207727,1761255762702,1823.81713459,0.00020301,2]
[392207728,1761255762938,1823.8171346,0.00020763,2]
[392207729,1761255781079,150.0,0.00012709,30]
[392207730,1761255781490,150.0,0.00013314,30]
[392207731,1761255781910,150.0,0.00013919,30]
[392207733,1761255791495,1331.261557,0.00013699,2]
[392207734,1761255852331,150.0,0.00012284,30]
[392207735,1761255858210,-150.0,0.00019437,2]
[392207736,1761255858251,-1331.261557,0.00020187,2]
[392207737,1761255858282,-2781.64783134,0.0002027,2]
[392207738,1761255858317,-150.0,0.00020363,2]
[392207739,1761255858349,-174.19122332,0.00020741,2]
[392207740,1761255864015,-825.80877668,0.00020741,2]
[392207741,1761255864050,-300.0,0.00020762,2]
[392207742,1761255888266,-339.42733482,0.00020762,2]
[392207743,1761255894301,-9417.62164152,0.00020763,2]
[392207759,1761255897181,-10000.01,0.00020763,2]
[392207760,1761255903387,-1873.30756914,0.00020763,2]
[392207761,1761255903439,-1200.0,0.00020762,2]
[392207762,1761255903449,-5053.39486172,0.00020763,2]
[392207763,1761255903487,-1200.0,0.00020763,2]
[392207764,1761255903519,-300.0,0.00020962,2]
[392207765,1761255903551,-300.0,0.00020962,2]
[392207766,1761255903584,-300.0,0.00020962,2]
[392207767,1761255903615,-287.43,0.00020963,3]
[392207768,1761255903656,-862.33,0.00020963,3]
[392207769,1761255903816,-4963.6385596,0.00020971,2]
[392207770,1761255903932,-300.0,0.00020962,2]
[392207771,1761255903945,-72.7328808,0.00020971,2]
[392207772,1761255910253,500.0,0.00020762,2]
[392207773,1761255910294,500.0,0.00020762,2]
[392207774,1761255910332,500.0,0.00020762,2]
[392207775,1761255910372,500.0,0.00020762,2]
[392207776,1761255910414,500.0,0.00020762,2]
[392207777,1761255910455,500.0,0.00020762,2]
[392207778,1761255910611,500.0,0.00020762,2]
[392207779,1761255910648,500.0,0.00020762,2]
[392207780,1761255910680,458.86051778,0.00020762,2]
[392207781,1761255910712,500.0,0.00020762,2]
[392207782,1761255910743,500.0,0.00020762,2]
[392207783,1761255910776,507.27233467,0.00020762,2]
[392207784,1761255910808,500.0,0.00020762,2]
[392207785,1761255910838,250.0,0.00020762,2]
[392207786,1761255918837,150.0,0.00019414,2]
[392207787,1761255919252,150.0,0.00020339,2]
[392207788,1761255923777,190.75,0.000149,2]
[392207789,1761255923819,500.0,0.00020762,2]
[392207790,1761255923852,500.0,0.00020762,2]
[392207791,1761255923886,500.0,0.00020762,2]
[392207792,1761255923921,500.0,0.00020762,2]
[392207793,1761255923958,500.0,0.00020762,2]
[392207794,1761255923995,293.12714755,0.00020762,2]
[392207795,1761255924022,206.87285245,0.00020762,2]
[392207796,1761255924060,500.0,0.00020762,2]
[392207797,1761255924095,500.0,0.00020762,2]
[392207798,1761255924128,500.0,0.00020762,2]
[392207799,1761255924166,500.0,0.00020762,2]
[392207800,1761255924201,500.0,0.00020762,2]
[392207801,1761255924244,500.0,0.00020762,2]
[392207802,1761255924279,500.0,0.00020762,2]
[392207803,1761255924314,500.0,0.00020762,2]
[392207804,1761255924350,500.0,0.00020762,2]
[392207805,1761255924388,500.0,0.00020762,2]
[392207806,1761255924426,500.0,0.00020762,2]
[392207807,1761255924458,500.0,0.00020762,2]
[392207808,1761255924491,500.0,0.00020762,2]
[392207809,1761255924522,500.0,0.00020762,2]
[392207810,1761255924555,376.07135864,0.00020762,2]
[392207811,1761255924585,500.0,0.00020762,2]
[392207812,1761255924616,500.0,0.00020762,2]
[392207813,1761255924647,500.0,0.00020762,2]
[392207814,1761255924679,500.0,0.00020762,2]
[392207815,1761255924713,417.06578891,0.00020762,2]
[392207816,1761255924740,82.93421109,0.00020762,2]
[392207817,1761255924771,500.0,0.00020762,2]
[392207818,1761255924805,500.0,0.00020762,2]
[392207819,1761255924838,500.0,0.00020762,2]
[392207820,1761255924869,500.0,0.00020762,2]
[392207821,1761255924901,500.0,0.00020762,2]
[392207822,1761255924937,457.27233467,0.00020762,2]
[392207823,1761255925113,3071.48105588,0.00020972,2]
[392207824,1761255932777,160.57266518,0.00020762,2]
[392207825,1761255933453,3727.74973318,0.00020972,2]
[392207826,1761255933480,1272.25026682,0.00020972,2]
[392207831,1761255990272,150.0,0.00012752,30]
[392207912,1761256175422,159.0,9.9e-07,2]
[392207913,1761256176489,159.0,9.9e-07,2]
[392207914,1761256177515,159.0,9.9e-07,2]
[392207922,1761256232236,-150.0,0.00018988,2]
[392207923,1761256232246,-150.0,0.0001918,2]
[392207924,1761256232255,-150.0,0.00019374,2]
[392207925,1761256232265,-162.3001708,0.00020196,2]
[392207926,1761256232274,-150.0,0.00020296,2]
[392207927,1761256232283,-11.3540425,0.00020505,6]
[392207928,1761256232295,-488.6459575,0.00020505,6]
[392207929,1761256232304,-500.0,0.00020505,6]
[392207930,1761256232314,-500.0,0.00020505,6]
[392207931,1761256232323,-500.0,0.00020505,6]
[392207933,1761256232332,-500.0,0.00020505,6]
[392207934,1761256232341,-300.0,0.00020618,2]
[392207935,1761256232351,-300.0,0.00020618,2]
[392207936,1761256232361,-300.0,0.00020618,2]
[392207938,1761256232370,-1200.0,0.00020618,2]
[392207939,1761256232380,-300.0,0.00020618,2]
[392207940,1761256232390,-300.0,0.00020618,2]
[392207941,1761256232400,-8326.56884657,0.00020618,2]
[392207942,1761256232414,-41673.43115343,0.00020618,2]
[392207943,1761256232423,-370.76313834,0.0002062,2]
[392207944,1761256232433,-158.57871476,0.00020685,2]
[392207945,1761256232443,-393.0169993,0.000207,2]
[392207946,1761256232452,-393.0169993,0.000207,2]
[392207947,1761256232462,-393.0169993,0.000207,2]
[392207948,1761256232472,-392.0369044,0.000207,2]
[392207949,1761256232481,-215.1461385,0.00020741,2]
[392207950,1761256232490,-1200.0,0.00020772,2]
[392207951,1761256232500,-500.0,0.00020871,2]
[392207952,1761256232509,-500.0,0.00020871,2]
[392207953,1761256232519,-500.0,0.00020871,2]
[392207954,1761256232529,-500.0,0.00020871,2]
[392207955,1761256232538,-500.0,0.00020871,2]
[392207956,1761256232547,-500.0,0.00020871,2]
[392207957,1761256232557,-500.0,0.00020871,2]
[392207958,1761256232566,-500.0,0.00020871,2]
[392207959,1761256232575,-500.0,0.00020871,2]
[392207960,1761256232585,-539.18213226,0.00020871,2]
[392207961,1761256232594,-202.3420425,0.00020871,2]
[392207963,1761256232603,-500.0,0.00020871,2]
[392207965,1761256232613,-500.0,0.00020871,2]
[392207967,1761256232622,-500.0,0.00020871,2]
[392207968,1761256232631,-500.0,0.00020871,2]
[392207969,1761256232640,-500.0,0.00020871,2]
[392207970,1761256232650,-500.0,0.00020871,2]
[392207971,1761256232660,-500.0,0.00020871,2]
[392207972,1761256232669,-500.0,0.00020871,2]
[392207973,1761256232679,-500.0,0.00020871,2]
[392207974,1761256232689,-500.0,0.00020871,2]
[392207975,1761256232698,-500.0,0.00020871,2]
[392207976,1761256232707,-589.66468051,0.00020871,2]
[392207977,1761256232814,-500.0,0.00020871,2]
[392207978,1761256232831,-249.1187168,0.00020871,2]
[392207979,1761256232840,-535.82592119,0.00020871,2]
[392207980,1761256232850,-1544.00695164,0.00020873,2]
[392207981,1761256232860,-162.30017079,0.00020873,2]
[392207982,1761256232869,-65300.56729224,0.00020973,2]
[392207983,1761256232881,-463.66376798,0.00020973,2]
[392207984,1761256232892,-126860.87398251,0.00020973,2]
[392207985,1761256232901,-500.0,0.00020973,2]
[392207986,1761256232910,-500.0,0.00020973,2]
[392207987,1761256232920,-500.0,0.00020973,2]
[392207988,1761256232930,-500.0,0.00020973,2]
[392207989,1761256232940,-500.0,0.00020973,2]
[392207990,1761256232950,-354.79328094,0.00020973,2]
[392207991,1761256232959,-500.0,0.00020973,2]
[392207992,1761256232968,-516.48762778,0.00020973,2]
[392207993,1761256232978,-502.63250073,0.00020973,2]
[392207994,1761256232987,-500.0,0.00020973,2]
[392207995,1761256232997,-500.0,0.00020973,2]
[392207996,1761256233006,-500.0,0.00020973,2]
[392207997,1761256233016,-594.83837719,0.00020973,2]
[392207998,1761256233025,-500.0,0.00020973,2]
[392207999,1761256233034,-500.0,0.00020973,2]
[392208000,1761256233043,-500.0,0.00020973,2]
[392208001,1761256233053,-500.0,0.00020973,2]
[392208002,1761256233062,-500.0,0.00020973,2]
[392208003,1761256233071,-500.0,0.00020973,2]
[392208004,1761256233080,-288.18986646,0.00020973,2]
[392208005,1761256233089,-500.0,0.00020973,2]
[392208006,1761256233101,-500.0,0.00020973,2]
[392208007,1761256233111,-500.0,0.00020973,2]
[392208008,1761256233120,-500.0,0.00020973,2]
[392208009,1761256233130,-500.0,0.00020973,2]
[392208010,1761256233139,-200.0,0.00020973,10]
[392208011,1761256233149,-200.0,0.00020973,10]
[392208012,1761256233158,-178.988771,0.00020973,10]
[392208013,1761256233167,-393.0169993,0.00021,2]
[392208014,1761256233176,-393.0169993,0.00021,2]
[392208015,1761256233185,-393.0169993,0.00021,2]
[392208016,1761256233194,-393.0169993,0.00021,2]
[392208017,1761256233203,-393.0169993,0.00021,2]
[392208018,1761256233213,-393.0169993,0.00021,2]
[392208019,1761256233223,-300.0,0.00021,2]
[392208020,1761256233232,-393.0169993,0.00021,2]
[392208021,1761256233241,-500.0,0.00021072,2]
[392208022,1761256233251,-200.0,0.00021073,2]
[392208023,1761256233260,-202.7543074,0.00021099,2]
[392208024,1761256233269,-500.0,0.00021172,2]
[392208025,1761256233278,-200.67465276,0.00021172,2]
[392208026,1761256233288,-150.0,0.00021236,2]
[392208027,1761256233298,-297.08175108,0.00021259,2]
[392208028,1761256233308,-375.72463603,0.00021259,2]
[392208029,1761256233318,-393.0169993,0.000213,2]
[392208030,1761256233327,-393.0169993,0.000214,2]
[392208031,1761256233337,-393.0169993,0.000214,2]
[392208032,1761256233346,-393.0169993,0.000214,2]
[392208033,1761256233356,-393.0169993,0.000214,2]
[392208034,1761256233366,-393.0169993,0.000214,2]
[392208035,1761256233375,-300.0,0.00021493,20]
[392208036,1761256233385,-300.0,0.00021493,20]
[392208037,1761256233395,-300.0,0.00021493,20]
[392208038,1761256233404,-300.0,0.00021493,20]
[392208039,1761256233413,-300.0,0.00021493,20]
[392208040,1761256233423,-300.0,0.00021493,20]
[392208041,1761256233433,-300.0,0.00021493,20]
[392208042,1761256233442,-300.0,0.00021493,20]
[392208043,1761256233452,-300.0,0.00021493,20]
[392208044,1761256233462,-300.0,0.00021493,20]
[392208045,1761256233472,-300.0,0.00021493,20]
[392208046,1761256233482,-300.0,0.00021493,20]
[392208047,1761256233491,-300.0,0.00021493,20]
[392208048,1761256233501,-300.0,0.00021493,20]
[392208049,1761256233510,-300.0,0.00021493,20]
[392208050,1761256233519,-600.0,0.00021493,20]
[392208051,1761256233529,-393.0169993,0.000215,2]
[392208052,1761256233539,-450.3939224,0.00021521,2]
[392208053,1761256233548,-1000.0,0.00021521,2]
[392208054,1761256233557,-1000.0,0.00021521,2]
[392208055,1761256233567,-1000.0,0.00021521,2]
[392208056,1761256233576,-260.16264461,0.00021521,2]
[392208057,1761256233586,-1000.0,0.00021521,2]
[392208058,1761256233595,-1000.0,0.00021521,2]
[392208059,1761256233605,-477.97,0.00021704,2]
[392208060,1761256233614,-1544.00695161,0.00021863,2]
[392208061,1761256233623,-447.35709,0.00021918,2]
[392208062,1761256233635,-4540.31890308,0.00022054,2]
[392208063,1761256233645,-1500.0,0.00022068,2]
[392208064,1761256233655,-1500.0,0.00022068,2]
[392208065,1761256233665,-1500.0,0.00022068,2]
[392208066,1761256233674,-1500.0,0.00022068,2]
[392208067,1761256233684,-1500.0,0.00022068,2]
[392208068,1761256233694,-447.35709,0.00022154,2]
[392208069,1761256233703,-150.0,0.00022187,2]
[392208070,1761256233713,-151.0,0.00022193,2]
[392208071,1761256233722,-310.19982159,0.00022243,2]
[392208072,1761256233732,-151.0,0.00022248,2]
[392208073,1761256233742,-198.0,0.00022303,2]
[392208074,1761256233752,-574.86,0.00022333,3]
[392208075,1761256233761,-447.35709,0.00022391,2]
[392208076,1761256233771,-420.0,0.00022436,2]
[392208077,1761256233781,-151.24323,0.0002254,2]
[392208078,1761256233790,-632.0,0.00022585,2]
[392208079,1761256233800,-983.0,0.00022585,2]
[392208080,1761256233810,-411.0,0.00022585,2]
[392208081,1761256233820,-2165.0,0.00022585,2]
[392208082,1761256233830,-1200.0,0.00022601,2]
[392208083,1761256233841,-1425.82166428,0.00022616,2]
[392208084,1761256233850,-2000.0,0.00022616,2]
[392208085,1761256233860,-2000.0,0.00022616,2]
[392208086,1761256233870,-2000.0,0.00022616,2]
[392208087,1761256233879,-2000.0,0.00022616,2]
[392208088,1761256233890,-437.50050324,0.0002262,2]
[392208089,1761256233899,-447.35709,0.00022627,2]
[392208090,1761256233908,-168.0,0.00022655,2]
[392208091,1761256233918,-168.0,0.00022693,2]
[392208092,1761256233928,-224.0,0.00022748,2]
[392208093,1761256233938,-1544.00695161,0.00022853,2]
[392208094,1761256233947,-447.35709,0.00022864,2]
[392208095,1761256233957,-224.0,0.00022888,2]
[392208096,1761256233967,-160.0,0.000229,2]
[392208097,1761256233977,-224.0,0.00022938,2]
[392208098,1761256233987,-224.0,0.00022944,2]
[392208099,1761256233997,-224.0,0.00022965,2]
[392208100,1761256234006,-447.35709,0.000231,2]
[392208101,1761256234015,-150.0,0.0002314,2]
[392208102,1761256234025,-1428.4917055,0.00023164,2]
[392208103,1761256234035,-2500.0,0.00023164,2]
[392208104,1761256234045,-2500.0,0.00023164,2]
[392208105,1761256234054,-2500.0,0.00023164,2]
[392208106,1761256234064,-224.0,0.00023187,2]